bitfinex/quotes_ETHUSD_20241019
["timestamp","ask_amount","ask_price","bid_price","bid_amount"]
[1729372041211,3.39898,2647.9,2647.7,0.25244808]
[1729372042019,3.39898,2647.9,2647.7,1.0432844]
[1729372042224,3.39898,2647.9,2647.7,0.25244808]
[1729372043041,3.39898,2647.9,2647.7,1.0432844]
[1729372043441,3.39874,2648.1,2647.7,1.0432844]
[1729372043642,4.22423,2648.2,2647.8,1.47609585]
[1729372044905,4.22423,2648.2,2647.8,0.68525953]
[1729372045249,4.22423,2648.2,2647.8,1.47609585]
[1729372046248,4.22423,2648.2,2647.8,0.68525953]
[1729372046403,4.22423,2648.2,2647.8,1.43715953]
[1729372046609,4.22423,2648.2,2647.8,2.22799585]
[1729372047129,4.22423,2648.2,2647.9,0.24804439]
[1729372051351,0.8257,2648.2,2647.9,0.24804439]
[1729372051656,3.39867,2648.1,2647.9,0.24804439]
[1729372059477,0.8257,2648.2,2647.9,0.24804439]
[1729372059689,4.22426,2648.2,2647.9,0.24804439]
[1729372061284,4.22426,2648.2,2647.9,1.03888071]
[1729372062765,3.39856,2648.2,2647.9,1.03888071]
[1729372064887,4.21657,2648.4,2648.0,0.36626891]
[1729372065056,0.8183,2648.4,2648.3,0.79083632]
[1729372065584,3.3982,2648.5,2648.3,0.79152887]
[1729372065879,3.39827,2648.4,2648.3,0.7915799]
[1729372066647,3.3982,2648.5,2648.3,0.98940277]
[1729372066843,4.17062,2648.6,2648.3,0.98940277]
[1729372069194,4.17062,2648.6,2648.3,0.19782287]
[1729372071072,4.12062,2648.6,2648.3,0.19782287]
[1729372071272,0.7226,2648.6,2648.3,0.27333744]
[1729372071471,4.12064,2648.6,2648.3,0.19782287]
[1729372071671,3.39804,2648.6,2648.3,0.19782287]
[1729372079002,4.17049,2648.7,2648.3,0.19782287]
[1729372079218,3.39789,2648.7,2648.3,0.19782287]
[1729372080493,3.39804,2648.6,2648.3,0.19782287]
[1729372083531,3.39785,2648.8,2648.3,0.19782287]
[1729372084178,0.7726,2648.9,2648.4,1.3012]
[1729372084340,0.7726,2648.9,2648.5,0.56889328]
[1729372084535,3.39779,2648.8,2648.5,0.56889328]
[1729372086897,3.39779,2648.8,2648.6,0.7553]
[1729372087671,6.79521,2649.0,2648.6,0.7553]
[1729372087974,3.39765,2648.9,2648.6,0.7553]
[1729372088297,3.39765,2648.9,2648.6,1.36170332]
[1729372093513,6.79521,2649.0,2648.6,1.36170332]
[1729372093674,3.39765,2648.9,2648.6,1.36170332]
[1729372097565,3.39759,2649.0,2648.6,1.36170332]
[1729372101909,3.39759,2649.0,2648.7,0.55]
[1729372102108,0.65520411,2649.3,2648.9,0.7553]
[1729372102269,3.39732,2649.2,2648.9,0.7553]
[1729372102770,0.0806676,2649.3,2648.9,0.8307955]
[1729372102771,3.4777876,2649.3,2648.9,0.8307955]
[1729372103840,3.39727,2649.2,2648.9,0.8307955]
[1729372104001,3.39727,2649.2,2648.9,1.40693007]
[1729372104535,6.79459,2649.2,2648.9,1.40693007]
[1729372104827,3.39727,2649.2,2648.9,1.40693007]
[1729372111254,3.39727,2649.2,2648.9,1.33143457]
[1729372117387,3.39727,2649.2,2648.9,0.57613457]
[1729372129485,3.39727,2649.2,2648.9,1.36771447]
[1729372130483,4.2508076,2649.3,2648.9,1.36771447]
[1729372130684,3.39727,2649.2,2648.9,1.36771447]
[1729372132510,0.8536676,2649.3,2648.9,1.36771447]
[1729372132724,4.2508176,2649.3,2648.9,1.36771447]
[1729372132930,3.39729,2649.2,2648.9,1.36771447]
[1729372133424,0.8536676,2649.3,2648.8,0.7915799]
[1729372133425,4.15359,2649.1,2648.8,0.7915799]
[1729372133640,4.15359,2649.1,2648.7,1.18664882]
[1729372133641,3.39763,2648.9,2648.7,0.7915799]
[1729372134630,4.15383,2648.9,2648.7,0.7915799]
[1729372135934,3.39776,2648.8,2648.7,0.7915799]
[1729372136243,3.39789,2648.7,2648.5,1.18664882]
[1729372136421,3.39789,2648.7,2648.6,0.79173431]
[1729372136604,4.15409,2648.7,2648.6,0.7917536]
[1729372137629,0.7562,2648.7,2648.6,0.7917536]
[1729372139962,4.15409,2648.7,2648.6,0.7917536]
[1729372140970,3.39802,2648.6,2648.5,0.7917536]
[1729372143784,4.15409,2648.7,2648.5,0.7917536]
[1729372143930,4.15409,2648.7,2648.4,0.7917536]
[1729372144265,3.39802,2648.6,2648.4,0.7917536]
[1729372146426,4.15412,2648.7,2648.4,0.7917536]
[1729372149336,3.39802,2648.6,2648.4,0.7917536]
[1729372152646,3.39802,2648.6,2648.3,0.7917536]
[1729372152990,3.39802,2648.6,2648.4,0.7917536]
[1729372153792,3.39814,2648.5,2648.4,0.7917536]
[1729372153993,4.16264,2648.5,2648.3,0.7917536]
[1729372154887,0.7645,2648.5,2648.3,0.7917536]
[1729372155073,4.16265,2648.5,2648.3,0.7917536]
[1729372157425,4.16265,2648.5,2648.3,1.06811384]
[1729372158296,4.16265,2648.5,2648.3,0.7917536]
[1729372159178,0.7645,2648.5,2648.3,0.7917536]
[1729372159379,6.79587,2648.7,2648.3,0.7917536]
[1729372160342,3.3981,2648.6,2648.3,0.7917536]
[1729372160637,3.39819,2648.5,2648.3,1.4080895]
[1729372160810,3.39819,2648.5,2648.3,0.7917536]
[1729372161537,3.3981,2648.6,2648.3,0.7917536]
[1729372161711,7.58291,2648.6,2648.3,0.7917536]
[1729372162038,3.39817,2648.5,2648.3,0.7917536]
[1729372163405,3.39817,2648.5,2648.1,1.97184882]
[1729372163406,4.18497,2648.4,2648.2,0.7917536]
[1729372163658,3.39853,2648.2,2648.1,0.7917536]
[1729372163949,3.3984,2648.3,2648.0,0.7917536]
[1729372164147,3.3984,2648.3,2648.1,0.7917536]
[1729372164363,3.3984,2648.3,2648.0,0.7917536]
[1729372164542,3.39855,2648.2,2648.0,0.7917536]
[1729372164706,3.3984,2648.3,2648.0,0.7917536]
[1729372165919,6.79692,2648.3,2648.0,0.7917536]
[1729372166244,3.39853,2648.2,2648.0,0.7917536]
[1729372166657,3.3984,2648.3,2648.0,0.7917536]
[1729372167634,4.18499,2648.4,2648.1,0.7917536]
[1729372167847,3.39843,2648.3,2648.1,0.7917536]
[1729372169036,3.39843,2648.3,2648.0,0.7917536]
[1729372169211,3.39843,2648.3,2648.1,0.7917536]
[1729372169611,3.39843,2648.3,2648.0,0.77630746]
[1729372169612,3.39843,2648.3,2648.0,1.56806106]
[1729372169857,3.39843,2648.3,2648.1,0.7917536]
[1729372170367,3.39843,2648.3,2648.0,0.77630746]
[1729372170368,3.39843,2648.3,2648.0,1.56806106]
[1729372170546,3.39843,2648.3,2648.1,0.7917536]
[1729372171167,3.39832,2648.4,2648.1,1.5929536]
[1729372178266,3.39832,2648.4,2648.2,0.7917536]
[1729372178997,3.39832,2648.4,2648.1,1.5929536]
[1729372179279,3.39832,2648.4,2648.2,0.7917536]
[1729372183091,3.3984,2648.3,2648.2,0.7917536]
[1729372194540,3.3984,2648.3,2648.1,1.18664882]
[1729372196662,3.3984,2648.3,2648.2,0.79227411]
[1729372197023,3.3984,2648.3,2648.1,1.18664882]
[1729372199434,3.3984,2648.3,2648.2,1.18664882]
[1729372210668,3.3984,2648.3,2648.1,1.58378216]
[1729372210871,3.3984,2648.3,2648.2,1.18954176]
[1729372211036,3.3984,2648.3,2648.1,1.58378216]
[1729372211237,3.3984,2648.3,2648.2,1.18954209]
[1729372211437,3.3984,2648.3,2648.1,1.58378216]
[1729372217801,3.3984,2648.3,2648.2,1.18961977]
[1729372218095,3.3984,2648.3,2648.1,1.58378216]
[1729372226618,3.3984,2648.3,2648.2,1.58378216]
[1729372227861,3.3984,2648.3,2648.1,1.58378216]
[1729372228190,3.3984,2648.3,2648.2,1.58378216]
[1729372228398,3.3984,2648.3,2648.1,1.58378216]
[1729372229300,3.39829,2648.4,2648.2,1.18949256]
[1729372229543,3.39829,2648.4,2648.3,1.18949256]
[1729372233838,3.39829,2648.4,2648.2,0.759]
[1729372238081,3.39804,2648.6,2648.2,0.759]
[1729372238283,6.79615,2648.6,2648.2,0.759]
[1729372238709,3.39815,2648.5,2648.2,0.759]
[1729372240619,3.39814,2648.5,2648.2,0.759]
[1729372240833,3.39814,2648.5,2648.3,1.18881466]
[1729372240978,3.39814,2648.5,2648.4,1.18881466]
[1729372241306,3.39814,2648.5,2648.3,1.18881466]
[1729372245511,3.39814,2648.5,2648.4,0.79237722]
[1729372245717,3.39814,2648.5,2648.4,0.79237994]
[1729372246824,3.39814,2648.5,2648.3,1.18881466]
[1729372247132,3.39814,2648.5,2648.4,0.79236153]
[1729372248229,3.39814,2648.5,2648.4,0.79245267]
[1729372252248,3.39814,2648.5,2648.4,0.79244297]
[1729372257849,3.39804,2648.6,2648.4,0.79244297]
[1729372258071,3.39814,2648.5,2648.3,1.18881466]
[1729372258266,3.39814,2648.5,2648.4,0.79231655]
[1729372258421,3.39814,2648.5,2648.4,0.79231259]
[1729372259140,3.39814,2648.5,2648.3,1.18881466]
[1729372259359,3.39814,2648.5,2648.3,1.74018352]
[1729372259569,3.39814,2648.5,2648.4,0.79231361]
[1729372259936,3.39814,2648.5,2648.3,1.74018352]
[1729372260866,3.39814,2648.5,2648.4,0.79230951]
[1729372261068,3.39814,2648.5,2648.3,1.18881466]
[1729372262121,3.39814,2648.5,2648.4,0.79231473]
[1729372262316,3.39814,2648.5,2648.4,0.79231366]
[1729372262559,3.39814,2648.5,2648.3,1.18881466]
[1729372262735,3.39814,2648.5,2648.4,0.79233266]
[1729372262947,3.39814,2648.5,2648.3,1.18881466]
[1729372263149,3.39814,2648.5,2648.4,0.79235087]
[1729372263344,3.39814,2648.5,2648.3,1.18881466]
[1729372263561,3.39814,2648.5,2648.4,0.79234676]
[1729372263923,3.39814,2648.5,2648.3,1.18881466]
[1729372264237,3.39814,2648.5,2648.4,0.79234191]
[1729372266324,3.39814,2648.5,2648.3,1.18881466]
[1729372267830,3.39814,2648.5,2648.4,0.79244575]
[1729372268032,3.39814,2648.5,2648.3,1.18881466]
[1729372268357,3.39804,2648.6,2648.3,1.74021742]
[1729372268539,3.39785,2648.8,2648.4,1.96651466]
[1729372268740,3.39785,2648.8,2648.6,0.79234929]
[1729372269058,6.79569,2648.8,2648.6,0.79234929]
[1729372269875,3.39784,2648.8,2648.6,0.79234929]
[1729372270119,3.39789,2648.7,2648.6,0.79234929]
[1729372272821,3.39784,2648.8,2648.6,0.79234929]
[1729372273030,3.39784,2648.8,2648.7,0.79234929]
[1729372273634,3.39784,2648.8,2648.6,1.06823569]
[1729372274124,3.39784,2648.8,2648.7,0.79234929]
[1729372274125,6.79567,2648.8,2648.7,0.79234929]
[1729372274427,3.39783,2648.8,2648.7,0.79234929]
[1729372275591,3.39783,2648.8,2648.6,1.06823569]
[1729372275934,3.39783,2648.8,2648.6,1.84593569]
[1729372277688,0.57462019,2648.9,2648.7,1.09582433]
[1729372279807,0.57462019,2648.9,2648.8,1.57004929]
[1729372286237,0.57462019,2648.9,2648.8,0.7777]
[1729372300970,0.57462019,2648.9,2648.8,1.57004929]
[1729372301142,0.57462019,2648.9,2648.8,2.24365983]
[1729372303286,0.57462019,2648.9,2648.8,1.45131054]
[1729372304357,0.57462019,2648.9,2648.8,2.24365983]
[1729372304883,0.57462019,2648.9,2648.8,1.45131054]
[1729372305245,0.57462019,2648.9,2648.8,2.24365983]
[1729372305444,0.57462019,2648.9,2648.8,1.45131054]
[1729372306187,0.57462019,2648.9,2648.8,2.24365983]
[1729372307982,0.57462019,2648.9,2648.8,1.45131054]
[1729372308392,0.57462019,2648.9,2648.8,2.24365983]
[1729372308962,0.57462019,2648.9,2648.8,1.45131054]
[1729372309269,0.57462019,2648.9,2648.8,2.24365983]
[1729372313393,0.57462019,2648.9,2648.8,1.45131054]
[1729372313695,0.57462019,2648.9,2648.8,2.24199743]
[1729372314198,0.57462019,2648.9,2648.8,1.45131054]
[1729372314363,0.57462019,2648.9,2648.8,2.6401252]
[1729372314895,0.57462019,2648.9,2648.8,1.45131054]
[1729372315396,0.57462019,2648.9,2648.8,2.6401252]
[1729372322161,0.57462019,2648.9,2648.8,2.4124252]
[1729372323510,0.57462019,2648.9,2648.8,1.22361054]
[1729372323818,0.57462019,2648.9,2648.8,0.55]
[1729372325298,0.57462019,2648.9,2648.8,2.13508622]
[1729372336968,0.57462019,2648.9,2648.8,0.55]
[1729372340179,0.57462019,2648.9,2648.8,1.73826046]
[1729372340337,0.57462019,2648.9,2648.8,0.55]
[1729372340537,0.57462019,2648.9,2648.8,2.13508622]
[1729372340737,0.57462019,2648.9,2648.8,0.55]
[1729372342361,0.57462019,2648.9,2648.8,2.13508622]
[1729372342757,0.57462019,2648.9,2648.8,0.55]
[1729372343081,0.57462019,2648.9,2648.8,2.13508622]
[1729372343580,0.57462019,2648.9,2648.8,0.55]
[1729372343782,0.57462019,2648.9,2648.8,2.13508622]
[1729372344138,0.57462019,2648.9,2648.8,0.55]
[1729372344344,0.57462019,2648.9,2648.8,2.13508622]
[1729372344802,0.57462019,2648.9,2648.8,0.55]
[1729372345002,0.57462019,2648.9,2648.8,2.13508622]
[1729372345401,0.57462019,2648.9,2648.8,0.55]
[1729372345919,0.57462019,2648.9,2648.8,2.13508622]
[1729372346402,0.57462019,2648.9,2648.8,0.55]
[1729372347614,0.57462019,2648.9,2648.8,2.13508622]
[1729372347820,0.57462019,2648.9,2648.8,0.55]
[1729372348231,0.57462019,2648.9,2648.8,2.13508622]
[1729372348718,0.57462019,2648.9,2648.8,0.55]
[1729372349010,0.57462019,2648.9,2648.8,1.58508622]
[1729372349213,5.26328821,2648.9,2648.8,0.79236549]
[1729372349390,4.78934019,2648.9,2648.8,0.79236549]
[1729372349713,4.21476,2648.8,2648.7,0.79236549]
[1729372350506,0.817,2648.6,2648.5,1.1883417]
[1729372353617,0.817,2648.6,2648.4,1.1883417]
[1729372353822,4.21502,2648.6,2648.5,1.1883417]
[1729372353979,4.21502,2648.6,2648.4,1.1883417]
[1729372354190,3.39814,2648.5,2648.4,1.1883417]
[1729372354523,3.39827,2648.4,2648.3,1.1883417]
[1729372354671,4.21527,2648.4,2648.3,1.1883417]
[1729372356306,4.21527,2648.4,2648.3,0.79164052]
[1729372356824,3.3984,2648.3,2648.2,0.79164052]
[1729372357205,4.21527,2648.4,2648.2,0.7915177]
[1729372357463,7.61366,2648.4,2648.2,0.7915177]
[1729372357712,4.21527,2648.4,2648.2,0.7915177]
[1729372360542,0.817,2648.4,2648.2,0.7915177]
[1729372361419,0.817,2648.4,2648.2,1.40812164]
[1729372362453,3.39815,2648.5,2648.2,1.40812164]
[1729372364519,3.39815,2648.5,2648.2,0.61660394]
[1729372366723,3.39815,2648.5,2648.2,1.40812164]
[1729372367295,3.39815,2648.5,2648.2,0.61660394]
[1729372367586,6.79638,2648.5,2648.2,0.61660394]
[1729372367792,3.39815,2648.5,2648.2,0.61660394]
[1729372368182,6.79639,2648.5,2648.2,0.61660394]
[1729372368363,3.39815,2648.5,2648.2,0.61660394]
[1729372373152,6.79637,2648.5,2648.2,0.61660394]
[1729372373565,3.39815,2648.5,2648.0,4.9776277]
[1729372373948,3.39815,2648.5,2648.1,0.7915177]
[1729372374789,3.39815,2648.5,2648.0,4.9776277]
[1729372375271,3.39832,2648.4,2648.0,1.5789177]
[1729372375471,4.16372,2648.4,2648.0,1.5789177]
[1729372375799,4.16372,2648.4,2648.1,0.61661494]
[1729372376106,0.7654,2648.4,2648.1,0.61661494]
[1729372377684,4.16368,2648.4,2648.1,0.61661494]
[1729372382210,4.16368,2648.4,2648.1,1.40813264]
[1729372382917,4.16368,2648.4,2648.1,0.61661494]
[1729372383116,4.16368,2648.4,2648.1,1.40813264]
[1729372384221,4.16368,2648.4,2648.1,0.61661494]
[1729372384372,4.16368,2648.4,2648.1,1.40813264]
[1729372389589,4.16368,2648.4,2648.2,0.7915177]
[1729372392239,3.3984,2648.3,2648.2,0.7915177]
[1729372392427,3.39853,2648.2,2648.1,0.7915177]
[1729372392610,3.39853,2648.2,2648.1,1.1883417]
[1729372392986,3.39853,2648.2,2648.0,1.1883417]
[1729372393190,3.39853,2648.2,2648.0,1.66346283]
[1729372393389,3.39853,2648.2,2648.1,1.1883417]
[1729372393589,3.39842,2648.3,2648.1,1.1883417]
[1729372393820,3.39842,2648.3,2648.2,0.79177691]
[1729372394648,3.39842,2648.3,2648.1,1.1883417]
[1729372395137,3.39842,2648.3,2648.2,0.79202448]
[1729372395348,3.39842,2648.3,2648.1,1.1883417]
[1729372396335,3.39842,2648.3,2648.2,1.1883417]
[1729372396839,4.16369,2648.4,2648.2,1.1883417]
[1729372397134,4.16369,2648.4,2648.1,1.1883417]
[1729372397343,3.3984,2648.3,2648.2,0.79221082]
[1729372397643,3.3984,2648.3,2648.2,0.79232112]
[1729372397796,3.3984,2648.3,2648.1,1.1883417]
[1729372398443,3.3984,2648.3,2648.2,0.79229841]
[1729372398641,3.3984,2648.3,2648.2,1.1883417]
[1729372399141,3.3984,2648.3,2648.1,1.1883417]
[1729372399594,3.3984,2648.3,2648.2,1.1883417]
[1729372401767,4.2028,2648.3,2648.2,1.1883417]
[1729372401973,4.2028,2648.3,2648.1,1.58508622]
[1729372401974,4.20293,2648.2,2648.1,1.1883417]
[1729372402272,3.39866,2648.1,2648.0,1.1883417]
[1729372402888,4.20306,2648.1,2648.0,1.1883417]
[1729372404153,5.0392299,2648.1,2648.0,1.1883417]
[1729372404532,5.0392299,2648.1,2647.8,1.58508622]
[1729372404533,5.0392299,2648.1,2647.9,1.1883417]
[1729372404731,5.0392299,2648.1,2648.0,0.79252474]
[1729372405029,5.0392299,2648.1,2647.9,1.1883417]
[1729372405030,3.39879,2648.0,2647.9,1.1883417]
[1729372405268,3.39879,2648.0,2647.8,1.58508622]
[1729372405444,3.39891,2647.9,2647.8,1.58508622]
[1729372415966,3.39891,2647.9,2647.7,1.58508622]
[1729372416167,3.39891,2647.9,2647.8,1.58508622]
[1729372422301,3.39891,2647.9,2647.8,1.72952388]
[1729372422606,3.39891,2647.9,2647.8,1.58508622]
[1729372422780,3.39891,2647.9,2647.8,1.72952323]
[1729372423103,3.39891,2647.9,2647.8,1.58508622]
[1729372423928,3.39891,2647.9,2647.7,1.58508622]
[1729372424124,3.39891,2647.9,2647.8,1.58508622]
[1729372424332,3.39891,2647.9,2647.7,1.58508622]
[1729372424621,3.39891,2647.9,2647.8,1.58508622]
[1729372424779,3.39891,2647.9,2647.8,1.72953711]
[1729372425119,3.39891,2647.9,2647.8,1.58508622]
[1729372425330,0.8035,2648.4,2647.9,3.39891]
[1729372425491,0.8035,2648.4,2648.3,0.79183324]
[1729372425492,3.39828,2648.4,2648.3,0.79183324]
[1729372426320,3.39797,2648.7,2648.3,0.79183324]
[1729372426488,3.39797,2648.7,2648.4,0.96365831]
[1729372426489,3.39789,2648.7,2648.4,0.96365831]
[1729372426690,3.39789,2648.7,2648.4,1.75527274]
[1729372427264,10.70766,2648.9,2648.4,1.75527274]
[1729372427434,3.39789,2648.7,2648.4,1.55731443]
[1729372427728,3.39789,2648.7,2648.5,0.79161443]
[1729372429125,3.39789,2648.7,2648.4,1.55731443]
[1729372429332,3.39789,2648.7,2648.5,0.79161443]
[1729372429496,3.39789,2648.7,2648.4,1.55731443]
[1729372430187,3.39789,2648.7,2648.4,2.33003751]
[1729372430387,3.39789,2648.7,2648.5,0.79161443]
[1729372430599,3.39789,2648.7,2648.4,2.33003751]
[1729372430886,3.39789,2648.7,2648.5,0.79161443]
[1729372431103,3.39789,2648.7,2648.4,2.33003751]
[1729372431303,3.39789,2648.7,2648.5,0.79161443]
[1729372431530,3.39789,2648.7,2648.4,2.33003751]
[1729372432935,3.3979,2648.7,2648.5,1.14339317]
[1729372433248,3.3979,2648.7,2648.5,0.79161443]
[1729372433413,3.3979,2648.7,2648.4,1.55731443]
[1729372435702,6.79588,2648.7,2648.4,1.55731443]
[1729372436011,3.3979,2648.7,2648.4,1.55731443]
[1729372440056,6.7959,2648.7,2648.4,1.55731443]
[1729372440255,3.3979,2648.7,2648.4,1.55731443]
[1729372444273,3.39785,2648.8,2648.4,1.55731443]
[1729372445666,6.79544,2648.9,2648.4,1.55731443]
[1729372446355,6.79544,2648.9,2648.4,2.66986751]
[1729372446553,6.79544,2648.9,2648.4,2.74537699]
[1729372446865,3.39779,2648.8,2648.4,2.66986751]
[1729372447035,3.39765,2648.9,2648.5,0.55]
[1729372447440,7.61039,2649.2,2648.7,0.55]
[1729372447640,3.39741,2649.1,2648.7,0.77026205]
[1729372448928,3.39741,2649.1,2648.7,1.56187648]
[1729372449129,4.21303,2649.2,2648.7,1.56187648]
[1729372449329,3.39733,2649.2,2648.8,0.79161443]
[1729372450642,3.39733,2649.2,2648.8,1.48492806]
[1729372450867,3.39733,2649.2,2648.8,0.69331363]
[1729372454547,3.34733,2649.2,2648.8,0.69331363]
[1729372456069,3.34733,2649.2,2648.9,0.7855]
[1729372456960,3.29733,2649.2,2648.9,0.7855]
[1729372462185,3.3975,2649.0,2648.9,0.7855]
[1729372478034,3.3975,2649.0,2648.9,1.3355]
[1729372479357,3.3975,2649.0,2648.9,1.68901263]
[1729372480539,3.3975,2649.0,2648.9,2.48062706]
[1729372484276,3.3975,2649.0,2648.9,2.12711443]
[1729372489055,3.3975,2649.0,2648.9,1.3355]
[1729372489591,3.3975,2649.0,2648.9,2.12701328]
[1729372489792,3.3975,2649.0,2648.9,1.3355]
[1729372491208,3.3975,2649.0,2648.9,2.52324986]
[1729372492589,3.3975,2649.0,2648.9,1.73774986]
[1729372507795,3.3975,2649.0,2648.9,0.55]
[1729372508341,3.3975,2649.0,2648.9,1.73774986]
[1729372508558,3.3975,2649.0,2648.9,0.55]
[1729372508958,3.3975,2649.0,2648.9,1.73774986]
[1729372510884,4.23083,2648.9,2648.8,1.18774986]
[1729372511084,4.23083,2648.9,2648.8,0.79216903]
[1729372515682,3.39776,2648.8,2648.7,0.79216903]
[1729372515880,3.39776,2648.8,2648.7,0.55]
[1729372516106,6.79521,2649.0,2648.7,2.07744161]
[1729372516262,3.39768,2648.9,2648.8,0.79177215]
[1729372516457,3.39768,2648.9,2648.7,1.73774986]
[1729372517000,3.39768,2648.9,2648.8,1.34171029]
[1729372538514,3.39768,2648.9,2648.8,1.34148537]
[1729372539238,3.39768,2648.9,2648.8,0.55]
[1729372539441,3.39768,2648.9,2648.8,1.34149646]
[1729372542547,4.20158,2648.9,2648.8,0.79149646]
[1729372549464,3.39776,2648.8,2648.7,1.18774986]
[1729372549758,3.39776,2648.8,2648.6,1.18774986]
[1729372549759,3.39789,2648.7,2648.6,1.18774986]
[1729372549912,3.39802,2648.6,2648.5,1.18774986]
[1729372550923,3.39802,2648.6,2648.5,1.73774986]
[1729372561247,3.39802,2648.6,2648.4,1.18774986]
[1729372561248,4.915921,2648.6,2648.4,1.18774986]
[1729372561455,3.39827,2648.4,2648.3,1.18774986]
[1729372561877,3.39811,2648.6,2648.3,1.18770054]
[1729372562098,3.39822,2648.5,2648.4,1.18752566]
[1729372562262,3.39811,2648.6,2648.3,2.35086649]
[1729372562454,3.39811,2648.6,2648.4,1.18737225]
[1729372562656,3.39814,2648.5,2648.4,1.18738749]
[1729372562965,3.39814,2648.5,2648.4,1.73738749]
[1729372586889,3.39814,2648.5,2648.4,0.69445893]
[1729372587095,3.39814,2648.5,2648.4,1.73744352]
[1729372587293,3.39814,2648.5,2648.4,0.55]
[1729372587643,3.39814,2648.5,2648.4,0.6944651]
[1729372587893,3.39814,2648.5,2648.4,0.69446575]
[1729372588052,3.39814,2648.5,2648.4,0.55]
[1729372588497,3.39814,2648.5,2648.4,1.73762019]
[1729372588898,3.39814,2648.5,2648.4,0.55]
[1729372589100,3.39814,2648.5,2648.4,1.73761782]
[1729372589396,3.39814,2648.5,2648.4,0.69447398]
[1729372589585,3.39814,2648.5,2648.4,0.55]
[1729372589904,3.39814,2648.5,2648.4,0.69447978]
[1729372590060,3.39814,2648.5,2648.4,0.55]
[1729372590257,3.39814,2648.5,2648.4,1.73774268]
[1729372590890,3.39814,2648.5,2648.4,1.73774619]
[1729372591051,3.39814,2648.5,2648.4,0.55]
[1729372591595,3.39814,2648.5,2648.4,2.2781429]
[1729372591759,3.39814,2648.5,2648.4,0.55]
[1729372592156,3.39814,2648.5,2648.4,2.27814652]
[1729372592392,3.39811,2648.6,2648.5,0.55]
[1729372592790,3.39811,2648.6,2648.5,2.13366649]
[1729372592962,3.39811,2648.6,2648.5,0.55]
[1729372593168,3.39811,2648.6,2648.5,2.13366649]
[1729372607330,3.39811,2648.6,2648.5,0.55]
[1729372607496,3.39811,2648.6,2648.5,2.13366649]
[1729372608858,3.39811,2648.6,2648.5,0.69438539]
[1729372609032,3.39811,2648.6,2648.5,2.674226]
[1729372610460,3.39811,2648.6,2648.5,0.69438539]
[1729372610662,3.39811,2648.6,2648.5,0.69435972]
[1729372611619,3.39811,2648.6,2648.5,2.27776517]
[1729372614373,3.39811,2648.6,2648.5,2.27775711]
[1729372614983,3.39811,2648.6,2648.5,2.13335829]
[1729372615315,3.39811,2648.6,2648.5,2.27770934]
[1729372615483,3.39811,2648.6,2648.5,2.13335829]
[1729372616835,3.39811,2648.6,2648.5,2.27771837]
[1729372617534,3.39811,2648.6,2648.5,2.27772252]
[1729372617734,3.39811,2648.6,2648.5,2.13335829]
[1729372618651,3.39811,2648.6,2648.5,2.27772393]
[1729372619271,3.39811,2648.6,2648.5,2.27773449]
[1729372619879,3.39811,2648.6,2648.5,2.13335829]
[1729372620064,3.39811,2648.6,2648.5,2.2777329]
[1729372620571,3.39811,2648.6,2648.5,2.13335829]
[1729372620777,3.39811,2648.6,2648.5,2.2777406]
[1729372620978,3.39811,2648.6,2648.5,2.27773847]
[1729372621177,3.39811,2648.6,2648.5,2.27774654]
[1729372627589,3.39811,2648.6,2648.5,2.13335829]
[1729372627777,3.39811,2648.6,2648.5,2.27775912]
[1729372629600,3.39811,2648.6,2648.5,0.69440083]
[1729372630163,3.39811,2648.6,2648.5,2.27790966]
[1729372630574,3.39811,2648.6,2648.5,0.69440083]
[1729372633070,3.39811,2648.6,2648.5,2.67373046]
[1729372633775,3.39811,2648.6,2648.5,0.69440083]
[1729372633977,3.39811,2648.6,2648.5,2.67373046]
[1729372634320,3.39811,2648.6,2648.5,0.69440083]
[1729372634491,3.39811,2648.6,2648.5,2.67373046]
[1729372634697,3.39811,2648.6,2648.5,2.6739826]
[1729372634894,3.39811,2648.6,2648.5,0.69441611]
[1729372635293,3.39811,2648.6,2648.5,2.67399788]
[1729372635599,3.39811,2648.6,2648.5,0.69441611]
[1729372636278,3.39811,2648.6,2648.5,2.67399788]
[1729372638455,3.39811,2648.6,2648.5,2.52958177]
[1729372638660,3.39811,2648.6,2648.5,2.67403398]
[1729372639679,3.39811,2648.6,2648.5,2.67431933]
[1729372642145,3.39811,2648.6,2648.5,2.6743178]
[1729372644465,3.39811,2648.6,2648.5,2.67429626]
[1729372645772,3.39811,2648.6,2648.5,2.67427845]
[1729372649350,3.39811,2648.6,2648.5,2.67462136]
[1729372653372,3.39811,2648.6,2648.5,2.67465337]
[1729372654116,3.39811,2648.6,2648.5,2.67495205]
[1729372656901,3.39811,2648.6,2648.5,2.53048717]
[1729372657218,3.39811,2648.6,2648.5,2.67514449]
[1729372660538,3.39811,2648.6,2648.5,2.53067157]
[1729372660711,3.39811,2648.6,2648.5,2.67514372]
[1729372663869,3.39811,2648.6,2648.5,2.67510721]
[1729372664835,3.39811,2648.6,2648.5,2.67510065]
[1729372668206,3.39811,2648.6,2648.5,2.53063506]
[1729372668404,3.39811,2648.6,2648.5,2.67509878]
[1729372668830,3.39811,2648.6,2648.5,2.6751279]
[1729372672031,3.39811,2648.6,2648.5,2.53066418]
[1729372672210,3.39811,2648.6,2648.5,2.67512959]
[1729372673728,3.39811,2648.6,2648.5,2.67521838]
[1729372675955,3.39811,2648.6,2648.5,2.67521561]
[1729372676119,3.39811,2648.6,2648.5,0.69446264]
[1729372676321,3.39811,2648.6,2648.5,0.55]
[1729372676538,3.39811,2648.6,2648.5,0.1444659]
[1729372676867,3.39811,2648.6,2648.5,0.69446447]
[1729372677560,3.39811,2648.6,2648.5,0.1444612]
[1729372677772,3.39811,2648.6,2648.5,0.6944612]
[1729372679968,3.39811,2648.6,2648.5,0.69445816]
[1729372680330,3.3979,2648.7,2648.6,0.55]
[1729372680530,3.3979,2648.7,2648.6,2.67504419]
[1729372682065,3.3979,2648.7,2648.6,2.67498997]
[1729372682449,3.3979,2648.7,2648.6,2.67496647]
[1729372686254,3.3979,2648.7,2648.6,2.67495438]
[1729372686776,3.3979,2648.7,2648.6,2.67461838]
[1729372689737,4.1892,2648.7,2648.6,2.12461838]
[1729372690037,4.868767,2648.7,2648.6,1.7286391]